[Event "Live Chess"]
[Site "Chess.com"]
[Date "2024.06.02"]
[Round "-"]
[White "stevochess11"]
[Black "road2gm5000"]
[Result "0-1"]
[WhiteElo "1689"]
[BlackElo "1145"]
[TimeControl "300"]
[EndTime "5:29:59 PDT"]
[Termination "road2gm5000 won by checkmate"]

1. d4 {[%clk 0:04:58.5]} 1... d5 {[%clk 0:04:58.8]} 2. Nf3 {[%clk 0:04:57.3]}
2... Nc6 {[%clk 0:04:58]} 3. Bf4 {[%clk 0:04:54.2]} 3... Bg4 {[%clk 0:04:56.8]}
4. e3 {[%clk 0:04:51.2]} 4... Nf6 {[%clk 0:04:54.2]} 5. Bb5 {[%clk 0:04:46.6]}
5... e6 {[%clk 0:04:52.9]} 6. Nbd2 {[%clk 0:04:42.3]} 6... Bd6 {[%clk
0:04:51.4]} 7. Bxd6 {[%clk 0:04:38.6]} 7... Qxd6 {[%clk 0:04:51.3]} 8. h3 {[%clk
0:04:36.1]} 8... Bh5 {[%clk 0:04:50]} 9. c4 {[%clk 0:04:32.7]} 9... O-O {[%clk
0:04:40.1]} 10. cxd5 {[%clk 0:04:18.7]} 10... Qxd5 {[%clk 0:04:34.5]} 11. O-O
{[%clk 0:04:18.6]} 11... Qxb5 {[%clk 0:04:33]} 12. b3 {[%clk 0:03:59.2]} 12...
Qf5 {[%clk 0:04:28.6]} 13. Rc1 {[%clk 0:03:57.3]} 13... Ne4 {[%clk 0:04:25.7]}
14. Nxe4 {[%clk 0:03:54.7]} 14... Qxe4 {[%clk 0:04:24.9]} 15. Rc5 {[%clk
0:03:51]} 15... Bxf3 {[%clk 0:04:17]} 16. gxf3 {[%clk 0:03:49.4]} 16... Qg6+
{[%clk 0:04:15.4]} 17. Kh2 {[%clk 0:03:45.5]} 17... Rad8 {[%clk 0:04:06.2]} 18.
Rg1 {[%clk 0:03:38.8]} 18... Qf6 {[%clk 0:04:01.7]} 19. Rcg5 {[%clk 0:03:33.8]}
19... g6 {[%clk 0:04:00.1]} 20. h4 {[%clk 0:03:26.1]} 20... Rd5 {[%clk 0:03:59]}
21. R5g4 {[%clk 0:03:21]} 21... Rh5 {[%clk 0:03:55.5]} 22. Kh3 {[%clk
0:03:12.9]} 22... Rd8 {[%clk 0:03:40.5]} 23. f4 {[%clk 0:02:54.3]} 23... Qf5
{[%clk 0:03:38.3]} 24. Kh2 {[%clk 0:02:47]} 24... Rd5 {[%clk 0:03:20.5]} 25. f3
{[%clk 0:02:34.9]} 25... Qf6 {[%clk 0:03:17.5]} 26. Qd3 {[%clk 0:02:15.3]} 26...
Rxh4+ {[%clk 0:03:14.1]} 27. Rxh4 {[%clk 0:02:11.9]} 27... Qxh4+ {[%clk
0:03:14]} 28. Kg2 {[%clk 0:02:10.8]} 28... Rh5 {[%clk 0:03:09.2]} 29. d5 {[%clk
0:01:57.8]} 29... Qh2+ {[%clk 0:03:06.6]} 30. Kf1 {[%clk 0:01:56.4]} 30... exd5
{[%clk 0:02:57.1]} 31. e4 {[%clk 0:01:51.7]} 31... dxe4 {[%clk 0:02:53.2]} 32.
Qxe4 {[%clk 0:01:50.6]} 32... Qxa2 {[%clk 0:02:39.7]} 33. Qe8+ {[%clk
0:01:30.4]} 33... Kg7 {[%clk 0:02:37.4]} 34. Qe3 {[%clk 0:01:19.6]} 34... Qb1+
{[%clk 0:02:34.5]} 35. Kg2 {[%clk 0:01:18.1]} 35... Qc2+ {[%clk 0:02:33.1]} 36.
Kg3 {[%clk 0:01:16.3]} 36... Qh2+ {[%clk 0:02:30.1]} 37. Kg4 {[%clk 0:01:13.9]}
37... Qh3# {[%clk 0:02:28]} 0-1

[Event "Live Chess"]
[Site "Chess.com"]
[Date "2024.06.02"]
[Round "-"]
[White "AlanBstard10"]
[Black "Tatarinov_Maxim"]
[Result "0-1"]
[WhiteElo "1228"]
[BlackElo "2288"]
[TimeControl "300"]
[EndTime "5:30:22 PDT"]
[Termination "Tatarinov_Maxim won by resignation"]

1. b4 {[%clk 0:04:58]} 1... a5 {[%clk 0:04:58.3]} 2. b5 {[%clk 0:04:56.5]} 2...
Nf6 {[%clk 0:04:55.6]} 3. e3 {[%clk 0:04:50.1]} 3... e6 {[%clk 0:04:54]} 4. Bb2
{[%clk 0:04:47]} 4... Be7 {[%clk 0:04:48.1]} 5. a4 {[%clk 0:04:45.2]} 5... O-O
{[%clk 0:04:46.1]} 6. Be2 {[%clk 0:04:44.3]} 6... d5 {[%clk 0:04:39.8]} 7. Nf3
{[%clk 0:04:43.1]} 7... c5 {[%clk 0:04:38.2]} 8. d4 {[%clk 0:04:39.1]} 8... b6
{[%clk 0:04:37]} 9. dxc5 {[%clk 0:04:37.9]} 9... bxc5 {[%clk 0:04:35]} 10. O-O
{[%clk 0:04:36.7]} 10... Bb7 {[%clk 0:04:31.7]} 11. Nbd2 {[%clk 0:04:35.1]}
11... Nbd7 {[%clk 0:04:30.3]} 12. c4 {[%clk 0:04:30.4]} 12... Nb6 {[%clk
0:04:28.1]} 13. cxd5 {[%clk 0:04:29.1]} 13... exd5 {[%clk 0:04:24.8]} 14. Rb1
{[%clk 0:04:26.9]} 14... Rc8 {[%clk 0:04:19]} 15. Bxf6 {[%clk 0:04:25]} 15...
Bxf6 {[%clk 0:04:17.1]} 16. Qc2 {[%clk 0:04:12.8]} 16... Re8 {[%clk 0:04:14.7]}
17. Rfc1 {[%clk 0:04:02.4]} 17... d4 {[%clk 0:04:12.2]} 18. e4 {[%clk
0:03:54.7]} 18... c4 {[%clk 0:04:03]} 19. Nf1 {[%clk 0:03:48.9]} 19... Bxe4
{[%clk 0:03:59]} 20. Qb2 {[%clk 0:03:43.3]} 20... d3 {[%clk 0:03:53.2]} 21. Qd2
{[%clk 0:03:33.7]} 21... dxe2 {[%clk 0:03:49.3]} 22. Qxe2 {[%clk 0:03:26.3]}
22... Bxb1 {[%clk 0:03:47.2]} 23. Rxb1 {[%clk 0:03:24.9]} 23... Rxe2 {[%clk
0:03:45.4]} 0-1

[Event "Live Chess"]
[Site "Chess.com"]
[Date "2024.06.02"]
[Round "-"]
[White "Ninifu"]
[Black "dhairyapandyauk"]
[Result "1-0"]
[WhiteElo "2013"]
[BlackElo "1650"]
[TimeControl "300"]
[EndTime "5:30:34 PDT"]
[Termination "Ninifu won by resignation"]

1. d4 {[%clk 0:04:54]} 1... Nf6 {[%clk 0:04:57.6]} 2. c4 {[%clk 0:04:52.7]} 2...
e6 {[%clk 0:04:56.8]} 3. Nc3 {[%clk 0:04:50.3]} 3... Bb4 {[%clk 0:04:55.5]} 4.
f3 {[%clk 0:04:49.2]} 4... b6 {[%clk 0:04:52.7]} 5. e4 {[%clk 0:04:45.7]} 5...
Nxe4 {[%clk 0:04:44.4]} 6. fxe4 {[%clk 0:04:44.2]} 6... Qh4+ {[%clk 0:04:43.2]}
7. Ke2 {[%clk 0:04:31.7]} 7... Qxe4+ {[%clk 0:04:41.8]} 8. Nxe4 {[%clk 0:04:30]}
8... Bb7 {[%clk 0:04:29.3]} 9. Nc3 {[%clk 0:04:25.3]} 9... Bxg2 {[%clk
0:04:27.8]} 10. Bxg2 {[%clk 0:04:23.7]} 10... Nc6 {[%clk 0:04:27.1]} 11. Be3
{[%clk 0:04:21]} 1-0

[Event "Live Chess"]
[Site "Chess.com"]
[Date "2024.06.02"]
[Round "-"]
[White "Ferrarifan27"]
[Black "RuslanChessN"]
[Result "0-1"]
[WhiteElo "2152"]
[BlackElo "1932"]
[TimeControl "300"]
[EndTime "5:30:37 PDT"]
[Termination "RuslanChessN won by checkmate"]

1. e4 {[%clk 0:04:50.2]} 1... c6 {[%clk 0:04:54.3]} 2. d4 {[%clk 0:04:45.8]}
2... d5 {[%clk 0:04:54.2]} 3. e5 {[%clk 0:04:45.3]} 3... Bf5 {[%clk 0:04:51.8]}
4. h4 {[%clk 0:04:44.7]} 4... h5 {[%clk 0:04:49.2]} 5. Bg5 {[%clk 0:04:43.5]}
5... Qb6 {[%clk 0:04:44.3]} 6. Bd3 {[%clk 0:04:42.4]} 6... Bxd3 {[%clk
0:04:41.5]} 7. Qxd3 {[%clk 0:04:42.3]} 7... Qxb2 {[%clk 0:04:39.3]} 8. e6 {[%clk
0:04:38.5]} 8... Qxa1 {[%clk 0:04:23.9]} 9. Qb3 {[%clk 0:04:36.5]} 9... b6
{[%clk 0:04:16.6]} 10. Nf3 {[%clk 0:04:32.8]} 10... Nf6 {[%clk 0:03:31.8]} 11.
O-O {[%clk 0:04:22.5]} 11... Ne4 {[%clk 0:03:29.8]} 12. exf7+ {[%clk 0:03:54.8]}
12... Kxf7 {[%clk 0:03:19.4]} 13. Ne5+ {[%clk 0:03:52.6]} 13... Kg8 {[%clk
0:03:17.7]} 14. Be3 {[%clk 0:03:47]} 14... e6 {[%clk 0:03:08.2]} 15. f3 {[%clk
0:03:21.4]} 15... Ng3 {[%clk 0:02:57.6]} 16. Rc1 {[%clk 0:03:15.7]} 16... Ne2+
{[%clk 0:02:54.5]} 17. Kf2 {[%clk 0:03:12.5]} 17... Nxc1 {[%clk 0:02:53.8]} 18.
Bxc1 {[%clk 0:02:57.9]} 18... Qxd4+ {[%clk 0:02:50.5]} 19. Qe3 {[%clk
0:02:53.4]} 19... Qxe3+ {[%clk 0:02:47]} 20. Bxe3 {[%clk 0:02:52.6]} 20... Bd6
{[%clk 0:02:15.5]} 21. Ng6 {[%clk 0:02:51.4]} 21... Rh7 {[%clk 0:02:11.6]} 22.
Nd2 {[%clk 0:02:46.1]} 22... Nd7 {[%clk 0:02:09.9]} 23. c4 {[%clk 0:02:44.2]}
23... Ne5 {[%clk 0:02:07.2]} 24. Nxe5 {[%clk 0:02:41.9]} 24... Bxe5 {[%clk
0:02:06]} 25. cxd5 {[%clk 0:02:40.6]} 25... cxd5 {[%clk 0:02:03.9]} 26. Nb3
{[%clk 0:02:38.1]} 26... Rc8 {[%clk 0:01:57]} 27. f4 {[%clk 0:02:37.2]} 27...
Bc3 {[%clk 0:01:51.7]} 28. Kf3 {[%clk 0:02:34]} 28... g6 {[%clk 0:01:49.7]} 29.
g3 {[%clk 0:02:31.9]} 29... Rhc7 {[%clk 0:01:47.7]} 30. g4 {[%clk 0:02:25.5]}
30... hxg4+ {[%clk 0:01:43]} 31. Kxg4 {[%clk 0:02:25.4]} 31... Kf7 {[%clk
0:01:41.5]} 32. Bc1 {[%clk 0:02:18.6]} 32... a5 {[%clk 0:01:34.9]} 33. Bd2
{[%clk 0:02:10.4]} 33... Bxd2 {[%clk 0:01:33.1]} 34. Nxd2 {[%clk 0:02:10.3]}
34... Rc2 {[%clk 0:01:31.2]} 35. Nf3 {[%clk 0:02:09.5]} 35... Re2 {[%clk
0:01:24.5]} 36. Ng5+ {[%clk 0:01:56.1]} 36... Ke7 {[%clk 0:01:22.9]} 37. h5
{[%clk 0:01:54.2]} 37... gxh5+ {[%clk 0:01:19.5]} 38. Kxh5 {[%clk 0:01:54.1]}
38... Rh8+ {[%clk 0:01:17.3]} 39. Kg6 {[%clk 0:01:53]} 39... Rg2 {[%clk
0:01:15.9]} 40. a4 {[%clk 0:01:51]} 40... Rg8+ {[%clk 0:01:12]} 41. Kh5 {[%clk
0:01:48.6]} 41... R8xg5+ {[%clk 0:01:07.8]} 42. fxg5 {[%clk 0:01:47.1]} 42...
Kf7 {[%clk 0:01:07.3]} 43. Kh6 {[%clk 0:01:41]} 43... Rh2# {[%clk 0:01:04.9]}
0-1

[Event "Live Chess"]
[Site "Chess.com"]
[Date "2024.06.02"]
[Round "-"]
[White "Victor_Bondar"]
[Black "davigator"]
[Result "0-1"]
[WhiteElo "1458"]
[BlackElo "2412"]
[TimeControl "300"]
[EndTime "5:30:38 PDT"]
[Termination "davigator won on time"]

1. e4 {[%clk 0:04:54.9]} 1... c5 {[%clk 0:04:58.6]} 2. c3 {[%clk 0:04:53]} 2...
Nf6 {[%clk 0:04:55.2]} 3. e5 {[%clk 0:04:51.3]} 3... Nd5 {[%clk 0:04:54.2]} 4.
d4 {[%clk 0:04:50.2]} 4... cxd4 {[%clk 0:04:53.3]} 5. cxd4 {[%clk 0:04:49.3]}
5... d6 {[%clk 0:04:52]} 6. exd6 {[%clk 0:04:39.5]} 6... Qxd6 {[%clk 0:04:48.8]}
7. Nc3 {[%clk 0:04:34.7]} 7... Nc6 {[%clk 0:04:47]} 8. Nxd5 {[%clk 0:04:32.7]}
8... Qxd5 {[%clk 0:04:45.6]} 9. Nf3 {[%clk 0:04:15.2]} 9... Bg4 {[%clk
0:04:44.2]} 10. Be2 {[%clk 0:04:11.8]} 10... e6 {[%clk 0:04:42.8]} 11. O-O
{[%clk 0:04:10]} 11... Be7 {[%clk 0:04:41.3]} 12. h3 {[%clk 0:04:09.2]} 12...
Bh5 {[%clk 0:04:39.3]} 13. Be3 {[%clk 0:03:45.3]} 13... O-O {[%clk 0:04:37.3]}
14. g4 {[%clk 0:03:43.7]} 14... Bg6 {[%clk 0:04:35.2]} 15. a3 {[%clk 0:03:28.6]}
15... Rfd8 {[%clk 0:04:32.9]} 16. Ne5 {[%clk 0:03:20.4]} 16... Nxd4 {[%clk
0:04:24.7]} 17. Nxg6 {[%clk 0:03:08.7]} 17... hxg6 {[%clk 0:04:20.7]} 18. Qxd4
{[%clk 0:02:48.9]} 18... Qxd4 {[%clk 0:04:16.5]} 19. Bxd4 {[%clk 0:02:48]} 19...
Rxd4 {[%clk 0:04:14.7]} 20. Rad1 {[%clk 0:02:40.5]} 20... Bf6 {[%clk 0:04:04.2]}
21. Rxd4 {[%clk 0:02:38.6]} 21... Bxd4 {[%clk 0:04:02.9]} 22. b3 {[%clk
0:02:34.3]} 22... Rc8 {[%clk 0:03:55.1]} 23. Bc4 {[%clk 0:02:20]} 23... Kf8
{[%clk 0:03:50.8]} 24. Rd1 {[%clk 0:02:16.3]} 24... e5 {[%clk 0:03:49.6]} 25.
Kg2 {[%clk 0:02:13.5]} 25... a6 {[%clk 0:03:48.4]} 26. Bd5 {[%clk 0:01:50.8]}
26... Rc7 {[%clk 0:03:43.9]} 27. f4 {[%clk 0:01:42.7]} 27... Ke7 {[%clk
0:03:30.1]} 28. fxe5 {[%clk 0:01:37.7]} 28... Bxe5 {[%clk 0:03:29]} 29. Rd3
{[%clk 0:01:32.4]} 29... f6 {[%clk 0:03:26.8]} 30. Kf3 {[%clk 0:01:18.5]} 30...
b5 {[%clk 0:03:25.6]} 31. Ke3 {[%clk 0:01:07.9]} 31... Rc2 {[%clk 0:03:21.2]}
32. Bb7 {[%clk 0:00:53.1]} 32... a5 {[%clk 0:03:20.2]} 33. Ba6 {[%clk
0:00:50.6]} 33... b4 {[%clk 0:03:19]} 34. a4 {[%clk 0:00:43.4]} 34... Rh2 {[%clk
0:03:16.1]} 35. Ke4 {[%clk 0:00:37.7]} 35... Bc3 {[%clk 0:03:05.4]} 36. Bc4
{[%clk 0:00:31.3]} 36... Re2+ {[%clk 0:03:01.5]} 37. Kd5 {[%clk 0:00:28.9]}
37... f5 {[%clk 0:02:57.1]} 38. Kc5 {[%clk 0:00:19.4]} 38... Re5+ {[%clk
0:02:52.7]} 39. Kb6 {[%clk 0:00:14.9]} 39... Kf6 {[%clk 0:02:51.3]} 40. Rd6+
{[%clk 0:00:12.7]} 40... Kg5 {[%clk 0:02:47.7]} 41. gxf5 {[%clk 0:00:10.4]}
41... gxf5 {[%clk 0:02:46.2]} 42. Rd7 {[%clk 0:00:07.2]} 42... Bd4+ {[%clk
0:02:39.3]} 43. Ka6 {[%clk 0:00:00.9]} 43... Re4 {[%clk 0:02:35.3]} 0-1

[Event "Live Chess"]
[Site "Chess.com"]
[Date "2024.06.02"]
[Round "-"]
[White "upoe610"]
[Black "kylet1990"]
[Result "1-0"]
[WhiteElo "2133"]
[BlackElo "750"]
[TimeControl "300"]
[EndTime "5:30:38 PDT"]
[Termination "upoe610 won by resignation"]

1. c4 {[%clk 0:04:57.7]} 1... e5 {[%clk 0:04:55.2]} 2. g3 {[%clk 0:04:56.5]}
2... Bc5 {[%clk 0:04:53.5]} 3. Nc3 {[%clk 0:04:55.2]} 3... Nf6 {[%clk
0:04:49.6]} 4. Bg2 {[%clk 0:04:54.1]} 4... O-O {[%clk 0:04:47.4]} 5. e3 {[%clk
0:04:50.4]} 5... d6 {[%clk 0:04:44.8]} 6. a3 {[%clk 0:04:47.3]} 6... Nc6 {[%clk
0:04:43.4]} 7. d3 {[%clk 0:04:46.6]} 7... Be6 {[%clk 0:04:40.6]} 8. Nf3 {[%clk
0:04:45.6]} 8... h6 {[%clk 0:04:38.1]} 9. O-O {[%clk 0:04:43.5]} 9... a6 {[%clk
0:04:35.4]} 10. d4 {[%clk 0:04:41.3]} 10... exd4 {[%clk 0:04:33.7]} 11. exd4
{[%clk 0:04:41.2]} 11... Nxd4 {[%clk 0:04:23.3]} 12. Nxd4 {[%clk 0:04:39.8]}
12... Bg4 {[%clk 0:04:10.4]} 13. Nde2 {[%clk 0:04:35.3]} 13... Qd7 {[%clk
0:04:02.3]} 14. b4 {[%clk 0:04:34.2]} 14... Ba7 {[%clk 0:03:58.8]} 15. Nd5
{[%clk 0:04:33.4]} 15... Nxd5 {[%clk 0:03:56.9]} 16. Bxd5 {[%clk 0:04:27.2]}
16... Bf3 {[%clk 0:03:51.9]} 17. Bxf3 {[%clk 0:04:25.6]} 17... Rfe8 {[%clk
0:03:48.5]} 18. Bb2 {[%clk 0:04:22.9]} 18... b5 {[%clk 0:03:32.9]} 19. Nf4
{[%clk 0:04:20.5]} 1-0

[Event "Live Chess"]
[Site "Chess.com"]
[Date "2024.06.02"]
[Round "-"]
[White "TJ-W"]
[Black "Duke_of_Bebington"]
[Result "1/2-1/2"]
[WhiteElo "1575"]
[BlackElo "1616"]
[TimeControl "300"]
[EndTime "5:30:45 PDT"]
[Termination "Game drawn by agreement"]

1. e4 {[%clk 0:04:58.3]} 1... e5 {[%clk 0:04:58.9]} 2. Nf3 {[%clk 0:04:53.2]}
2... Nf6 {[%clk 0:04:58.4]} 3. Nxe5 {[%clk 0:04:50.2]} 3... d6 {[%clk
0:04:56.9]} 4. Nf3 {[%clk 0:04:47.3]} 4... Nxe4 {[%clk 0:04:56.3]} 5. Bd3 {[%clk
0:04:42.6]} 5... d5 {[%clk 0:04:47]} 6. Bxe4 {[%clk 0:04:39.7]} 6... dxe4 {[%clk
0:04:45.7]} 7. Ne5 {[%clk 0:04:24.2]} 7... Bd6 {[%clk 0:04:31.6]} 8. Nc4 {[%clk
0:04:12.5]} 8... O-O {[%clk 0:04:23.1]} 9. d3 {[%clk 0:04:05.6]} 9... exd3
{[%clk 0:04:17.3]} 10. Qxd3 {[%clk 0:04:02.9]} 10... Re8+ {[%clk 0:04:15.5]} 11.
Be3 {[%clk 0:03:45]} 11... Be6 {[%clk 0:04:01.3]} 12. Nxd6 {[%clk 0:03:42.1]}
12... Qxd6 {[%clk 0:03:59.1]} 13. Qxd6 {[%clk 0:03:40]} 13... cxd6 {[%clk
0:03:59]} 14. O-O {[%clk 0:03:39]} 14... Nc6 {[%clk 0:03:58.4]} 15. Nc3 {[%clk
0:03:36]} 15... d5 {[%clk 0:03:56.8]} 16. Rad1 {[%clk 0:03:26.6]} 16... Red8
{[%clk 0:03:44.9]} 17. Nb5 {[%clk 0:03:21.7]} 17... Rac8 {[%clk 0:03:40.8]} 18.
c3 {[%clk 0:03:14.1]} 18... a6 {[%clk 0:03:39.1]} 19. Nd4 {[%clk 0:03:08.1]}
19... Nxd4 {[%clk 0:03:38]} 20. Bxd4 {[%clk 0:03:08]} 20... b5 {[%clk
0:03:25.6]} 21. a3 {[%clk 0:03:00.2]} 21... Re8 {[%clk 0:03:15.4]} 22. Rfe1
{[%clk 0:02:54]} 22... Bf5 {[%clk 0:03:12.9]} 23. h3 {[%clk 0:02:46.1]} 23...
Bc2 {[%clk 0:03:08.9]} 24. Rc1 {[%clk 0:02:39.4]} 24... Bb3 {[%clk 0:03:06.6]}
25. Re3 {[%clk 0:02:29.8]} 25... Rxe3 {[%clk 0:03:03.3]} 26. Bxe3 {[%clk
0:02:24.8]} 26... a5 {[%clk 0:02:48.9]} 27. Re1 {[%clk 0:02:16.8]} 27... Kf8
{[%clk 0:02:43.2]} 28. Bd4 {[%clk 0:02:09.3]} 28... f6 {[%clk 0:02:37.5]} 29.
Bb6 {[%clk 0:01:58.6]} 29... a4 {[%clk 0:02:35.2]} 30. Ba5 {[%clk 0:01:50.7]}
30... Re8 {[%clk 0:02:31.4]} 31. Bb4+ {[%clk 0:01:46.6]} 31... Kf7 {[%clk
0:02:28.2]} 32. Rxe8 {[%clk 0:01:41.7]} 32... Kxe8 {[%clk 0:02:27.1]} 33. f4
{[%clk 0:01:34.6]} 33... f5 {[%clk 0:02:24.2]} 34. Kf2 {[%clk 0:01:32.5]} 34...
Kd7 {[%clk 0:02:22.3]} 35. Ke3 {[%clk 0:01:30.1]} 35... Ke6 {[%clk 0:02:11.2]}
1/2-1/2

[Event "Live Chess"]
[Site "Chess.com"]
[Date "2024.06.02"]
[Round "-"]
[White "KeithArkell"]
[Black "JanMur7"]
[Result "1/2-1/2"]
[WhiteElo "2418"]
[BlackElo "2287"]
[TimeControl "300"]
[EndTime "5:30:53 PDT"]
[Termination "Game drawn - timeout vs insufficient material"]

1. d4 {[%clk 0:04:57.1]} 1... Nf6 {[%clk 0:04:56.7]} 2. Nf3 {[%clk 0:04:56.3]}
2... d5 {[%clk 0:04:54]} 3. c4 {[%clk 0:04:55.4]} 3... e6 {[%clk 0:04:53.1]} 4.
cxd5 {[%clk 0:04:54.6]} 4... exd5 {[%clk 0:04:53]} 5. Nc3 {[%clk 0:04:54.1]}
5... Be7 {[%clk 0:04:50.4]} 6. Bg5 {[%clk 0:04:52.7]} 6... h6 {[%clk 0:04:49.1]}
7. Bxf6 {[%clk 0:04:51.7]} 7... Bxf6 {[%clk 0:04:49]} 8. e3 {[%clk 0:04:51.1]}
8... c6 {[%clk 0:04:47.1]} 9. b4 {[%clk 0:04:50.3]} 9... a6 {[%clk 0:04:43.5]}
10. a4 {[%clk 0:04:48.6]} 10... Bg4 {[%clk 0:04:41.6]} 11. Be2 {[%clk
0:04:47.4]} 11... O-O {[%clk 0:04:39.7]} 12. O-O {[%clk 0:04:45.9]} 12... Nd7
{[%clk 0:04:38.7]} 13. b5 {[%clk 0:04:45.2]} 13... axb5 {[%clk 0:04:37.8]} 14.
axb5 {[%clk 0:04:43.1]} 14... Rxa1 {[%clk 0:04:37.3]} 15. Qxa1 {[%clk
0:04:42.6]} 15... Qa8 {[%clk 0:04:36.4]} 16. bxc6 {[%clk 0:04:39.9]} 16... bxc6
{[%clk 0:04:35.4]} 17. Rc1 {[%clk 0:04:36]} 17... Qxa1 {[%clk 0:04:28.3]} 18.
Rxa1 {[%clk 0:04:34.8]} 18... c5 {[%clk 0:04:27.5]} 19. Nxd5 {[%clk 0:04:33.8]}
19... cxd4 {[%clk 0:04:21.9]} 20. Nxf6+ {[%clk 0:04:32.9]} 20... Nxf6 {[%clk
0:04:21]} 21. Nxd4 {[%clk 0:04:32.2]} 21... Bxe2 {[%clk 0:04:19.8]} 22. Nxe2
{[%clk 0:04:31.4]} 22... Rd8 {[%clk 0:04:16.8]} 23. Nd4 {[%clk 0:04:30.4]} 23...
g6 {[%clk 0:04:09.6]} 24. h3 {[%clk 0:04:28.7]} 24... Rb8 {[%clk 0:04:05.5]} 25.
Ra2 {[%clk 0:04:27]} 25... Ne4 {[%clk 0:04:00.6]} 26. g4 {[%clk 0:04:25.2]}
26... Nf6 {[%clk 0:03:41.2]} 27. Kg2 {[%clk 0:04:24]} 27... h5 {[%clk
0:03:37.8]} 28. Kf3 {[%clk 0:04:21.5]} 28... hxg4+ {[%clk 0:03:35.8]} 29. hxg4
{[%clk 0:04:21.4]} 29... Rd8 {[%clk 0:03:31.2]} 30. Nc6 {[%clk 0:04:19.6]} 30...
Re8 {[%clk 0:03:26.3]} 31. Ra7 {[%clk 0:04:17.1]} 31... Nd5 {[%clk 0:03:18.3]}
32. Rd7 {[%clk 0:04:09.1]} 32... Nf6 {[%clk 0:03:09.8]} 33. Ra7 {[%clk
0:04:03.9]} 33... Nd5 {[%clk 0:03:08.4]} 34. g5 {[%clk 0:04:01]} 34... Re6
{[%clk 0:03:04.9]} 35. Nd8 {[%clk 0:03:41.6]} 35... Re7 {[%clk 0:03:01.8]} 36.
Ra5 {[%clk 0:03:38.9]} 36... Nc7 {[%clk 0:02:57.8]} 37. Nc6 {[%clk 0:03:35.3]}
37... Re8 {[%clk 0:02:52.9]} 38. Ra7 {[%clk 0:03:29.6]} 38... Ne6 {[%clk
0:02:49.6]} 39. Kg4 {[%clk 0:03:28.7]} 39... Nc5 {[%clk 0:02:45.5]} 40. Ne7+
{[%clk 0:03:20.1]} 40... Kf8 {[%clk 0:02:42.9]} 41. Nd5 {[%clk 0:03:19.2]} 41...
Ne4 {[%clk 0:02:37.9]} 42. f3 {[%clk 0:03:14.8]} 42... Nd6 {[%clk 0:02:34.7]}
43. e4 {[%clk 0:03:12]} 43... Nxe4 {[%clk 0:01:53.5]} 44. fxe4 {[%clk
0:03:08.7]} 44... Rxe4+ {[%clk 0:01:52.7]} 45. Nf4 {[%clk 0:03:07.4]} 45... Rb4
{[%clk 0:01:51.3]} 46. Ra5 {[%clk 0:02:53]} 46... Kg7 {[%clk 0:01:45.1]} 47. Kf3
{[%clk 0:02:51.9]} 47... Rb3+ {[%clk 0:01:39.6]} 48. Ke4 {[%clk 0:02:50.7]}
48... Rb4+ {[%clk 0:01:38.4]} 49. Ke5 {[%clk 0:02:49.3]} 49... Rb1 {[%clk
0:01:29.4]} 50. Kd6 {[%clk 0:02:36.5]} 50... Rd1+ {[%clk 0:01:22.8]} 51. Rd5
{[%clk 0:02:31.6]} 51... Rf1 {[%clk 0:01:14]} 52. Ke5 {[%clk 0:02:21.6]} 52...
Re1+ {[%clk 0:01:11.2]} 53. Kd4 {[%clk 0:02:18.1]} 53... Kf8 {[%clk 0:00:59.4]}
54. Ra5 {[%clk 0:02:08.4]} 54... Kg7 {[%clk 0:00:55.2]} 55. Nd5 {[%clk
0:02:02.3]} 55... Rd1+ {[%clk 0:00:48.4]} 56. Ke4 {[%clk 0:02:01.2]} 56... Re1+
{[%clk 0:00:47.2]} 57. Ne3 {[%clk 0:01:29]} 57... Rg1 {[%clk 0:00:39.2]} 58. Kf4
{[%clk 0:01:26.1]} 58... Rb1 {[%clk 0:00:34.4]} 59. Ra4 {[%clk 0:01:15.2]} 59...
Rb2 {[%clk 0:00:31.6]} 60. Ng4 {[%clk 0:01:10.3]} 60... Rb5 {[%clk 0:00:28.3]}
61. Nf6 {[%clk 0:01:04.9]} 61... Rb1 {[%clk 0:00:27.7]} 62. Ne8+ {[%clk
0:00:56.6]} 62... Kf8 {[%clk 0:00:26.1]} 63. Ra8 {[%clk 0:00:55.1]} 63... Ke7
{[%clk 0:00:24.6]} 64. Nf6 {[%clk 0:00:51.1]} 64... Rf1+ {[%clk 0:00:23.5]} 65.
Ke5 {[%clk 0:00:46.9]} 65... Re1+ {[%clk 0:00:23]} 66. Ne4 {[%clk 0:00:45.8]}
66... Re2 {[%clk 0:00:20.6]} 67. Ra7+ {[%clk 0:00:45]} 67... Kf8 {[%clk
0:00:19.5]} 68. Kf6 {[%clk 0:00:44.3]} 68... Rxe4 {[%clk 0:00:18.5]} 69. Rxf7+
{[%clk 0:00:40.8]} 69... Kg8 {[%clk 0:00:17.6]} 70. Re7 {[%clk 0:00:39]} 70...
Ra4 {[%clk 0:00:15.9]} 71. Re6 {[%clk 0:00:18.9]} 71... Ra8 {[%clk 0:00:11.2]}
72. Ke7 {[%clk 0:00:14]} 72... Rb8 {[%clk 0:00:10.3]} 73. Rd6 {[%clk 0:00:13.1]}
73... Ra8 {[%clk 0:00:08.5]} 74. Rd8+ {[%clk 0:00:12.4]} 74... Rxd8 {[%clk
0:00:07.8]} 75. Kxd8 {[%clk 0:00:11.8]} 75... Kf8 {[%clk 0:00:07.7]} 76. Kd7
{[%clk 0:00:10.8]} 76... Kf7 {[%clk 0:00:07.2]} 77. Kd6 {[%clk 0:00:10.4]} 77...
Ke8 {[%clk 0:00:06.6]} 78. Ke6 {[%clk 0:00:09.6]} 78... Kd8 {[%clk 0:00:06]} 79.
Kf7 {[%clk 0:00:08.6]} 79... Kc7 {[%clk 0:00:05.9]} 80. Kxg6 {[%clk 0:00:08]}
80... Kc6 {[%clk 0:00:05.8]} 81. Kf7 {[%clk 0:00:07.6]} 81... Kc5 {[%clk
0:00:05.7]} 82. g6 {[%clk 0:00:07.1]} 82... Kd4 {[%clk 0:00:05.6]} 83. g7 {[%clk
0:00:07]} 83... Kc3 {[%clk 0:00:05.5]} 84. g8=Q {[%clk 0:00:06.9]} 84... Kd2
{[%clk 0:00:05.4]} 85. Qd8+ {[%clk 0:00:06.5]} 85... Kc2 {[%clk 0:00:05.3]} 86.
Ke6 {[%clk 0:00:06.1]} 86... Kb3 {[%clk 0:00:05.2]} 87. Kd5 {[%clk 0:00:05.5]}
87... Kb2 {[%clk 0:00:04.4]} 88. Qc7 {[%clk 0:00:04]} 88... Ka1 {[%clk
0:00:04.3]} 89. Kd4 {[%clk 0:00:02.6]} 89... Kb1 {[%clk 0:00:04.2]} 90. Qc4
{[%clk 0:00:01.5]} 90... Kb2 {[%clk 0:00:04.1]} 1/2-1/2